[Event "LEM Niedersachsen-Meister 2025"]
[Site "Verden"]
[Date "2025.01.02"]
[Round "1.7"]
[White "Hoeffer, David"]
[Black "Garbuszus, Juergen"]
[Result "1-0"]
[ECO "A80"]
[WhiteElo "2322"]
[BlackElo "2068"]
[Annotator "TA"]
[PlyCount "105"]
[EventDate "2024.12.27"]
[EventType "swiss"]
[EventCountry "GER"]
[SourceTitle "playchess.com"]
[Source "ChessBase"]
[SourceQuality "1"]
[TimeControl "40/5400+30:1800+30"]

{[%evp 9,105,43,63,62,54,0,20,0,36,8,107,36,54,41,64,29,103,108,225,195,210,183,209,203,216,218,214,216,406,367,360,333,584,584,589,592,585,283,310,288,304,210,248,170,240,-12,-14,-12,-10,-8,-10,-12,0,0,0,-90,-71,-70,-47,-58,-56,-81,-69,-135,-109,-118,-56,-70,299,305,321,314,295,276,250,236,796,774,1371,1349,29964,29966,29976,29978,29978,29979,29976,29977,29972,29974,29987,29988,29988,29989,29989,29989,29992,29993]} 1. d4 {[%emt 0:00:01]} f5 {[%emt 0:00:04]} 2. Nc3 {[%emt 0:00:04]} Nf6 {[%emt 0:00:08]} 3. Bf4 {[%emt 0:00:04]} g6 {[%emt 0:01:36]} 4. h4 {[%emt 0:00:14]} Bg7 {[%emt 0:00:31]} 5. e3 {[%emt 0:01:07]} d6 {[%emt 0:01:56]} 6. Bc4 {[%emt 0:08:28][%cal Oh4h5]} e6 {[%emt 0:01:44]} 7. Nf3 {[%emt 0:02:48]} (7. h5 $14) 7... Qe7 {[%emt 0:01:01]} 8. Qe2 {[%emt 0:00:30]} (8. Ne2 $5) 8... c6 {[%emt 0:05:00]} 9. Bb3 {[%emt 0:00:52]} b6 {[%emt 0:02:30]} (9... d5 $11 {keeps the balance.}) 10. O-O-O {[%emt 0:02:30]} (10. e4 $1 $16) 10... a5 {[%emt 0:04:39]} 11. a4 {[%emt 0:02:27]} Ba6 {[%emt 0:00:47]} 12. Qe1 $1 {[%emt 0:00:05] White is much more active.} Nbd7 {[%emt 0:04:22] [#]} (12... d5 $1 $11) 13. e4 $1 $16 {[%emt 0:04:32]} e5 {[%emt 0:03:42]} (13... Nxe4 $16 14. Nxe4 fxe4) 14. Bg5 {[%emt 0:02:17][%cal Oh4h5]} h6 {[%emt 0:00:56] [#]} 15. Bxf6 $1 {[%emt 0:00:07]} Bxf6 {[%emt 0:06:21]} 16. h5 {[%emt 0:03:09]} exd4 {[%emt 0:16:33]} 17. Nxd4 {[%emt 0:00:08]} Bxd4 {[%emt 0:00:06]} 18. Rxd4 {[%emt 0:00:05]} Nc5 $2 {[%emt 0:04:33]} (18... f4 19. Qd2 (19. hxg6 O-O-O $18) 19... O-O-O 20. hxg6 (20. Rxd6 Ne5 $18) 20... Ne5 21. Qxf4 Qg7) 19. hxg6 {[%emt 0:04:16]} Nxb3+ {[%emt 0:04:13]} 20. cxb3 {[%emt 0:00:07]} O-O-O $2 {[%emt 0:00:13]} (20... f4 21. Qd2 O-O-O 22. Qxf4 Kc7 23. Rxh6 Rxh6) 21. exf5 $18 {[%emt 0:01:09]} Qg5+ {[%emt 0:05:32]} 22. Qe3 {[%emt 0:00:14]} Qxf5 {[%emt 0:00:29]} 23. Qh3 {[%emt 0:00:06]} (23. g7 $142 Rhg8 24. Rxh6 (24. Qxh6 Qd7 $18) 24... Rxg7 25. Ne4 (25. Rdxd6 Rxd6 26. Rxd6 Kc7 $18)) 23... Qxh3 {[%emt 0:02:49]} 24. Rxh3 {[%emt 0:00:07]} (24. gxh3 $6 Rhg8 $18) 24... Kc7 {[%emt 0:01:32]} 25. Rdh4 {[%emt 0:06:04][%cal Of2f4]} Bc8 {[%emt 0:01:31]} 26. g4 {[%emt 0:00:08][%cal Of2f4]} Rdg8 {[%emt 0:03:57]} (26... Rhg8 {keeps fighting.}) 27. Rf3 $2 {[%emt 0:05:51]} (27. Rxh6 $18 Rxh6 28. Rxh6 Bxg4 29. Ne4) 27... Rxg6 $11 {[%emt 0:00:42]} 28. Rf7+ {[%emt 0:00:03]} Kb8 {[%emt 0:05:13]} 29. f3 {[%emt 0:00:08]} Be6 {[%emt 0:00:30][%csl LRb3,LRf7]} 30. Re7 {[%emt 0:00:29][%cal Og4g5]} Bxb3 {[%emt 0:00:26]} 31. Kd2 {[%emt 0:01:06]} Rf8 {[%emt 0:03:32][%cal Ob3e6]} 32. Ke3 {[%emt 0:00:49]} (32. Ne2 $11) 32... Rgf6 {[%emt 0:01:56]} 33. Rh3 {[%emt 0:00:05]} d5 {[%emt 0:00:36] Prevents Ne4} 34. Ne2 {[%emt 0:02:01]} c5 {[%emt 0:01:15] And now ...d4+ would win.} 35. f4 {[%emt 0:00:31]} Bxa4 {[%emt 0:01:32]} 36. f5 {[%emt 0:00:09]} (36. Kd2 $1 $15) 36... d4+ $17 {[%emt 0:03:54]} 37. Kd2 {[%emt 0:01:10]} Rd8 {[%emt 0:02:52]} (37... Rg8 $17 38. Rh4 Rc6) 38. Nf4 $15 {[%emt 0:00:13]} b5 $2 {[%emt 0:05:01][%mdl 8192]} (38... c4 $1 $15 {stays ahead.} 39. Ne6 Rg8) 39. b3 $18 {[%emt 0:00:35]} Bxb3 {[%emt 0:00:55]} 40. Rxb3 {[%emt 0:00:06]} b4 {[%emt 0:00:11]} 41. Kd3 {[%emt 0:35:38]} a4 {[%emt 0:33:07][%cal Ba5a4,Ba4a3,Ba3a2][%mdl 32]} 42. Rb1 {[%emt 0:00:11]} Rfd6 $2 {[%emt 0:00:00]} (42... b3 43. Re6 Rf7) 43. Ne6 {[%emt 0:00:00]} Rc8 {[%emt 0:00:00]} 44. Kc4 {[%emt 0:00:00][%cal Of5f6] f6! is the strong threat.} Rdc6 {[%emt 0:00:00]} 45. f6 {[%emt 0:00:00][%cal Bf5f6,Bf6f7][%mdl 32]} a3 {[%emt 0:00:00]} 46. f7 {[%emt 0:00:00]} a2 {[%emt 0:00:00]} 47. Ra1 {[%emt 0:00:00]} (47. f8=R $2 {is the wrong capture.} axb1=Q (47... axb1=R $2 48. Kb5 $19) 48. Rf2 Qe4 $19 (48... Qc1+ $2 49. Kd5 $19)) 47... b3 {[%emt 0:00:00]} 48. Kxb3 {[%emt 0:00:00]} ({Not} 48. f8=R Rxf8 49. Nxf8 b2 $11) 48... c4+ {[%emt 0:00:00][%cal Bc5c4,Bc4c3,Bc3c2][%mdl 32]} 49. Kc2 {[%emt 0:00:00]} c3 {[%emt 0:00:00]} 50. Re8 {[%emt 0:00:00]} d3+ {[%emt 0:02:05]} 51. Kxd3 {[%emt 0:00:00]} Rd6+ {[%emt 0:00:07]} 52. Ke4 {[%emt 0:00:00]} c2 {[%emt 0:01:29]} 53. Rxc8+ {[%emt 0:00:00]} 1-0

[Event "LEM Niedersachsen-Meister 2025"]
[Site "Verden"]
[Date "2025.01.02"]
[Round "1.8"]
[White "Drygala, Lars"]
[Black "Knuedel, Torben"]
[Result "1-0"]
[ECO "A45"]
[WhiteElo "2067"]
[BlackElo "2308"]
[Annotator "TA"]
[PlyCount "105"]
[EventDate "2024.12.27"]
[EventType "swiss"]
[EventCountry "GER"]
[SourceTitle "playchess.com"]
[Source "ChessBase"]
[SourceQuality "1"]
[TimeControl "40/5400+30:1800+30"]

{[%evp 9,105,10,54,33,49,33,47,43,45,0,2,7,62,54,87,98,111,97,103,97,153,69,68,65,67,79,98,80,110,88,104,78,108,98,100,75,72,88,114,105,109,64,113,73,106,105,208,179,194,184,166,169,195,137,149,108,186,212,203,179,208,207,214,84,88,77,371,92,1151,941,1056,1081,1093,1023,1086,1086,1032,1025,1095,1084,1258,1181,1912,1886,1912,1902,1865,1824,1844,1472,2231,1906,2694,2565,10257,8404,5365,4529]} 1. d4 {[%emt 0:00:04]} Nf6 {[%emt 0:00:05]} 2. Bf4 {[%emt 0:00:11]} c5 {[%emt 0:03:17]} 3. e3 {[%emt 0:02:54]} cxd4 {[%emt 0:01:38]} 4. exd4 {[%emt 0:00:06]} Qb6 {[%emt 0:01:20]} 5. Na3 {[%emt 0:04:37]} d6 {[%emt 0:13:35][%cal Oc8e6]} 6. Nc4 {[%emt 0:01:52]} Qc7 {[%emt 0:03:10]} 7. Bd3 {[%emt 0:02:24]} Bg4 {[%emt 0:10:41]} 8. f3 {[%emt 0:08:24]} Be6 {[%emt 0:00:39]} 9. Qe2 {[%emt 0:00:15]} Nc6 {[%emt 0:03:28]} 10. c3 {[%emt 0:00:29]} Nd5 {[%emt 0:05:03]} (10... O-O-O $11) 11. Bg3 $1 $14 {[%emt 0:02:07] White is more active.} g6 {[%emt 0:06:39]} 12. Be4 $1 {[%emt 0:04:53]} O-O-O {[%emt 0:13:18]} 13. Bxd5 $1 {[%emt 0:08:43]} Bxd5 {[%emt 0:00:32]} 14. Ne3 {[%emt 0:00:07]} e6 {[%emt 0:00:52]} (14... Qa5 $142) 15. Nxd5 {[%emt 0:01:13]} (15. c4 $1 $16 {[%cal Rc4d5]}) 15... exd5 {[%emt 0:00:12]} 16. Nh3 {[%emt 0:02:00]} Bh6 {[%emt 0:02:44]} 17. O-O {[%emt 0:01:24]} Rhe8 {[%emt 0:02:14]} 18. Qb5 {[%emt 0:01:17]} Qa5 {[%emt 0:04:49]} 19. Qb3 {[%emt 0:01:17]} Re2 {[%emt 0:04:42]} 20. Rae1 {[%emt 0:02:00]} Re3 {[%emt 0:11:23]} 21. Rxe3 {[%emt 0:02:43]} Bxe3+ {[%emt 0:00:02]} 22. Kh1 {[%emt 0:00:48]} Re8 {[%emt 0:06:59]} 23. Bxd6 {[%emt 0:02:51]} Re6 {[%emt 0:00:07]} 24. Bf4 {[%emt 0:02:07]} Qa6 {[%emt 0:01:50]} 25. Ra1 {[%emt 0:02:53]} Ne7 {[%emt 0:01:05]} 26. Qb4 {[%emt 0:03:00]} Qc4 {[%emt 0:01:59] Inhibits Qc5+.} 27. Qa3 $40 {[%emt 0:03:35][%cal Oh3g5][%mdl 128] White attacks with force.} Qa6 {[%emt 0:01:04]} (27... Qe2 $16 {keeps fighting.} 28. Qc5+ (28. Qxa7 $2 Bxf4 29. Qa4 Nf5 $19) 28... Nc6 29. Qf8+ (29. Qxd5 $2 Bxf4 30. Qb3 Bd6 $19) 29... Nd8 30. Qc5+ Nc6) 28. Qc5+ {[%emt 0:00:15]} Qc6 {[%emt 0:00:27]} 29. Qxa7 {[%emt 0:00:26]} Bxf4 {[%emt 0:00:32]} 30. Nxf4 {[%emt 0:00:07][%cal Bh3f4,Bf4d3,Bd3c5][%mdl 32]} Re3 {[%emt 0:00:18]} 31. Qa3 {[%emt 0:04:02]} (31. Rd1 $18) 31... g5 $16 {[%emt 0:00:09]} 32. Nd3 {[%emt 0:00:25][%cal Oh2h3]} Ng6 {[%emt 0:00:30]} (32... Qe6 $16) 33. Qa8+ $18 {[%emt 0:01:48]} Kc7 {[%emt 0:00:17]} 34. Nc5 {[%emt 0:00:10]} Re8 {[%emt 0:00:32]} 35. Qa5+ {[%emt 0:01:26]} Kb8 {[%emt 0:00:39]} 36. b4 {[%emt 0:01:13]} (36. a4 $18 {and White stays clearly on top.}) 36... b6 $16 {[%emt 0:00:57] [#]} 37. Qa6 $1 {[%emt 0:00:30] and a4 should not be overlooked} Rc8 $2 {[%emt 0:00:34][%mdl 8192] [#]} (37... Re7 $16) 38. Rb1 $2 {[%emt 0:11:49]} bxc5 $4 {[%emt 0:00:16][%mdl 8192]} (38... Rc7 $16) 39. bxc5+ $18 {[%emt 0:00:08]} Kc7 {[%emt 0:00:05]} 40. Rb6 {[%emt 0:00:39]} Ne7 {[%emt 0:01:16]} 41. Qa7+ {[%emt 0:31:06]} Kd8 {[%emt 0:30:03]} 42. Rxc6 {[%emt 0:00:10]} Rxc6 {[%emt 0:00:05][%mdl 4096] Endgame KQ-KRN} 43. Qb8+ {[%emt 0:01:15]} Kd7 {[%emt 0:01:01]} 44. a4 {[%emt 0:00:21]} Re6 {[%emt 0:00:00]} 45. Kg1 {[%emt 0:00:00]} Re1+ {[%emt 0:00:00]} 46. Kf2 {[%emt 0:00:00]} Ra1 {[%emt 0:00:00]} 47. Qd6+ {[%emt 0:00:00]} Ke8 {[%emt 0:00:00]} 48. c6 {[%emt 0:00:00]} Ra2+ {[%emt 0:00:00]} 49. Ke1 {[%emt 0:00:00]} Ra1+ {[%emt 0:00:00]} 50. Kd2 {[%emt 0:00:00] White wants to mate with Qb8+.} f6 {[%emt 0:00:00]} 51. c7 {[%emt 0:00:00]} Rxa4 {[%emt 0:00:00]} 52. c8=Q+ {[%emt 0:00:00]} Nxc8 {[%emt 0:00:00]} 53. Qc6+ {[%emt 0:00:00]} 1-0

[Event "LEM Niedersachsen-Meister 2025"]
[Site "Verden"]
[Date "2025.01.02"]
[Round "1.9"]
[White "Voege, Tobias"]
[Black "Wilmink, Anna"]
[Result "1/2-1/2"]
[ECO "D35"]
[WhiteElo "2292"]
[BlackElo "2033"]
[Annotator "TA"]
[PlyCount "104"]
[EventDate "2024.12.27"]
[EventType "swiss"]
[EventCountry "GER"]
[SourceTitle "playchess.com"]
[Source "ChessBase"]
[SourceQuality "1"]
[TimeControl "40/5400+30:1800+30"]

{[%evp 21,104,12,31,0,35,0,0,0,0,0,0,-1,94,99,95,0,0,7,0,3,19,0,0,0,0,0,0,0,0,0,0,0,0,0,0,0,0,0,0,0,0,0,0,0,0,0,0,0,0,-54,0,-66,0,0,6,0,0,0,0,0,9,0,0,0,0,0,0,-4,-11,-11,-11,-11,-11,-39,-22,-16,-11,-11,-11,-18,-11,-33,-11,-11,-11]} 1. c4 {[%emt 0:00:03]} e6 {[%emt 0:00:22]} 2. d4 {[%emt 0:00:28]} d5 {[%emt 0:00:17]} 3. Nc3 {[%emt 0:00:15]} Nf6 {[%emt 0:00:21]} 4. Bg5 {[%emt 0:00:12]} Be7 {[%emt 0:00:47]} 5. e3 {[%emt 0:00:10]} O-O {[%emt 0:00:39]} 6. cxd5 {[%emt 0:00:18]} exd5 {[%emt 0:01:03]} 7. Bd3 {[%emt 0:00:12]} b6 {[%emt 0:01:05]} 8. Nge2 {[%emt 0:00:43]} Bb7 {[%emt 0:02:26]} 9. O-O {[%emt 0:00:40]} c5 {[%emt 0:03:03]} 10. dxc5 {[%emt 0:09:23]} bxc5 {[%emt 0:00:51]} 11. Rc1 {[%emt 0:01:51]} Nbd7 {[%emt 0:02:27]} 12. Bb1 {[%emt 0:07:59]} Rc8 {[%emt 0:04:45]} 13. Qc2 {[%emt 0:13:41]} Re8 {[%emt 0:11:40]} 14. Rfd1 {[%emt 0:03:41][%cal Oc3d5]} g6 {[%emt 0:06:04]} 15. a4 {[%emt 0:04:32]} Qb6 {[%emt 0:07:53][%cal Od5d4]} 16. Ba2 $1 {[%emt 0:02:26][%cal Og5f6]} Rcd8 {[%emt 0:13:36]} (16... c4 $11) 17. Bxd5 $16 {[%emt 0:02:40] White is more active.} (17. Nxd5 Nxd5 18. Bxe7 Nxe7 $17) 17... Bxd5 {[%emt 0:11:34]} 18. Nxd5 {[%emt 0:05:25]} ({White should play} 18. Rxd5 $16 Qa5 (18... Nxd5 $2 19. Nxd5 Qe6 20. Nxe7+ Rxe7 21. Nf4 $16) 19. Rdd1) 18... Nxd5 $11 {[%emt 0:00:31]} 19. Rxd5 {[%emt 0:00:11] Bxe7 is the strong threat.} Bxg5 {[%emt 0:03:43]} 20. Rxg5 {[%emt 0:00:09]} Ne5 {[%emt 0:01:26]} 21. h4 {[%emt 0:04:23][%cal Oe2c3]} (21. Qxc5 $2 {loses.} Qxc5 (21... Qxb2 22. Nf4 $11) 22. h4 Qb4 $19) 21... h6 {[%emt 0:07:50]} 22. Rg3 {[%emt 0:01:09][%cal Oh4h5,Bg5g3,Bg3f3,Bf3f4][%mdl 32]} Nd3 {[%emt 0:01:30]} 23. Rb1 {[%emt 0:02:43]} Qf6 {[%emt 0:02:11][%csl LRf2,LRh4]} 24. Nf4 {[%emt 0:04:50]} Nxf4 {[%emt 0:02:11]} 25. Rf3 {[%emt 0:01:26]} Ne2+ {[%emt 0:01:55]} 26. Qxe2 {[%emt 0:00:15]} Qxh4 {[%emt 0:00:22]} 27. Qa6 {[%emt 0:01:39]} Re7 {[%emt 0:03:11][%cal Be8e7,Be7d7,Bd7d2][%mdl 32]} 28. Rf4 {[%emt 0:04:45]} Qg5 {[%emt 0:00:51]} 29. Rc1 {[%emt 0:03:12]} Red7 {[%emt 0:01:54]} 30. Qe2 {[%emt 0:01:19]} Rd2 {[%emt 0:01:23]} 31. Qf3 {[%emt 0:04:11]} R8d7 {[%emt 0:00:52]} 32. b4 {[%emt 0:01:57]} cxb4 {[%emt 0:01:26]} 33. Rxb4 {[%emt 0:02:13]} Qd8 {[%emt 0:01:31]} 34. Kh2 {[%emt 0:05:34]} R7d5 {[%emt 0:02:11]} 35. g3 {[%emt 0:03:59]} (35. Rf4 $11 Qd7 36. g4) 35... Qd7 {[%emt 0:02:44]} (35... Rxf2+ $1 $15 36. Qxf2 Rd2) 36. Kg2 {[%emt 0:03:36]} (36. Rf4 $11) 36... Rf5 {[%emt 0:00:49]} ({Black should try} 36... Rxf2+ $1 $15 37. Qxf2 Rd2) 37. Rf4 {[%emt 0:00:26]} Rh5 $132 {[%emt 0:00:41][%mdl 2048] Black has counterplay} 38. g4 {[%emt 0:03:55]} Rg5 {[%emt 0:00:39]} 39. Qa8+ {[%emt 0:02:05]} Kg7 {[%emt 0:00:05]} 40. Qc8 {[%emt 0:00:17]} Qd5+ {[%emt 0:00:50]} 41. e4 {[%emt 0:09:27] The board is on fire.} Qd7 $1 {[%emt 0:10:37]} 42. Qc3+ {[%emt 0:07:24]} Kg8 {[%emt 0:08:00]} 43. Qc8+ {[%emt 0:01:10]} Kg7 {[%emt 0:00:26]} 44. Qxd7 {[%emt 0:03:08]} Rxd7 {[%emt 0:00:07][%mdl 4096] Endgame KRR-KRR} 45. Kf3 {[%emt 0:00:48]} Re5 {[%emt 0:01:44]} 46. Ke3 {[%emt 0:00:20]} Rb7 {[%emt 0:01:12]} 47. Kd4 {[%emt 0:01:02]} Ree7 {[%emt 0:00:34]} 48. Rc4 $1 {[%emt 0:01:00] Dodges Rb4} Red7+ {[%emt 0:01:40]} 49. Ke3 {[%emt 0:01:24]} Rb3+ {[%emt 0:00:26]} 50. Ke2 {[%emt 0:00:05]} Rb2+ {[%emt 0:00:19]} 51. Kf1 {[%emt 0:00:10]} Rb1+ {[%emt 0:01:15]} 52. Kg2 {[%emt 0:00:06]} Re1 {[%emt 0:00:46]} 1/2-1/2

[Event "LEM Niedersachsen-Meister 2025"]
[Site "Verden"]
[Date "2025.01.02"]
[Round "1.10"]
[White "Celik, Abdullah"]
[Black "Lammers, Markus"]
[Result "0-1"]
[ECO "A32"]
[WhiteElo "2032"]
[BlackElo "2304"]
[Annotator "TA"]
[PlyCount "56"]
[EventDate "2024.12.27"]
[EventType "swiss"]
[EventCountry "GER"]
[SourceTitle "playchess.com"]
[Source "ChessBase"]
[SourceQuality "1"]
[TimeControl "40/5400+30:1800+30"]

{[%evp 9,56,2,14,-65,-48,-56,-68,-68,-45,-81,-40,-31,-50,-47,-57,-62,0,-58,-65,-87,-74,-129,-130,-158,-155,-204,-222,-318,-317,-722,-707,-679,-635,-633,-621,-617,-612,-781,-780,-733,-724,-726,-716,-5443,-5431,-5943,-5943,-29998,-29999]} 1. d4 {[%emt 0:00:02]} Nf6 {[%emt 0:00:23]} 2. c4 {[%emt 0:00:05]} e6 {[%emt 0:00:15]} 3. g3 {[%emt 0:00:37]} c5 {[%emt 0:00:07]} 4. Nf3 {[%emt 0:00:03]} cxd4 {[%emt 0:00:16]} 5. Nxd4 {[%emt 0:00:04]} d5 {[%emt 0:02:39]} 6. cxd5 {[%emt 0:00:29]} (6. Bg2 $11) 6... Qxd5 $15 {[%emt 0:00:24]} 7. Nf3 {[%emt 0:00:13]} Qxd1+ {[%emt 0:00:23]} 8. Kxd1 {[%emt 0:00:02]} Bc5 {[%emt 0:00:37][%cal Of6g4]} 9. e3 {[%emt 0:01:08]} Nc6 {[%emt 0:06:02]} 10. a3 {[%emt 0:02:56]} O-O {[%emt 0:13:51]} 11. b4 {[%emt 0:08:45] Prevents b6.} Be7 {[%emt 0:00:07]} 12. Bb2 {[%emt 0:02:12]} b6 {[%emt 0:09:17]} (12... Ne4 $15 13. Ke1 Nd6) 13. Bg2 {[%emt 0:13:41]} (13. Nbd2 $11) 13... Bb7 {[%emt 0:16:40]} 14. Nfd2 {[%emt 0:03:25]} Rac8 {[%emt 0:09:17]} 15. Ke1 {[%emt 0:08:20]} (15. b5 $142 Na5 16. Bxb7 Nxb7 17. Ra2) 15... Rfd8 $17 {[%emt 0:03:44]} 16. Nc3 {[%emt 0:16:43]} Ng4 {[%emt 0:00:41][%cal Og4f2] And now ...Nxf2! would win.} 17. Nd1 {[%emt 0:03:00]} (17. Rd1 $17 {keeps fighting.}) 17... Ba6 $19 {[%emt 0:03:04]} 18. Bxc6 {[%emt 0:14:45]} (18. f4 $142) 18... Rxc6 {[%emt 0:00:16]} 19. f3 $2 {[%emt 0:00:38] White is weak on the light squares} (19. Bc3) 19... Rc2 {[%emt 0:02:14]} 20. Bd4 {[%emt 0:03:34]} e5 {[%emt 0:00:53]} 21. Bc3 {[%emt 0:00:37] [#]} Nxe3 $1 {[%emt 0:01:47][%mdl 512]} 22. Nxe3 {[%emt 0:02:33]} Rxc3 {[%emt 0:00:09]} 23. Nf5 {[%emt 0:00:53]} Bf8 {[%emt 0:00:48]} 24. g4 {[%emt 0:04:31]} g6 {[%emt 0:01:10]} 25. Ng3 {[%emt 0:00:03]} Re3+ {[%emt 0:01:45]} 26. Kf2 {[%emt 0:03:30]} Rxd2+ {[%emt 0:02:06]} 27. Kxe3 {[%emt 0:00:02]} Bh6+ {[%emt 0:00:10]} 28. Ke4 {[%emt 0:00:16]} Bf4 {[%emt 0:00:16]} 0-1

[Event "LEM Niedersachsen-Meister 2025"]
[Site "Verden"]
[Date "2025.01.02"]
[Round "1.11"]
[White "Giorgadze, Giorgi Gel"]
[Black "Kieselbach, Jannik"]
[Result "1-0"]
[ECO "C67"]
[WhiteElo "2569"]
[BlackElo "1979"]
[Annotator "TA"]
[PlyCount "85"]
[EventDate "2024.12.27"]
[EventType "swiss"]
[EventCountry "GER"]
[SourceTitle "playchess.com"]
[Source "ChessBase"]
[SourceQuality "1"]
[TimeControl "40/5400+30:1800+30"]

{[%evp 24,85,8,6,4,0,0,0,5,32,45,45,58,41,53,0,60,59,59,57,57,57,57,57,121,116,115,115,115,116,102,93,194,157,170,162,162,183,237,170,2256,2243,2225,2095,29973,29971,29970,29971,29971,29972,29972,29973,6514,29958,29978,29979,29987,29987,29988,29989,29989,29990,29998,29999]} 1. e4 {[%emt 0:00:01]} e5 {[%emt 0:00:20]} 2. Nf3 {[%emt 0:00:04]} Nc6 {[%emt 0:00:15]} 3. Bb5 {[%emt 0:00:06]} Nf6 {[%emt 0:00:43][%cal Bg8f6,Bf6e4,Be4d6,Bd6f5,Bf5e7,Be7g6][%mdl 32]} 4. O-O {[%emt 0:00:20]} Nxe4 {[%emt 0:00:55]} 5. d4 {[%emt 0:02:59]} Nd6 {[%emt 0:00:17]} 6. Bxc6 {[%emt 0:02:13]} dxc6 {[%emt 0:00:17]} 7. dxe5 {[%emt 0:00:08]} Nf5 {[%emt 0:00:23]} 8. Qxd8+ {[%emt 0:00:10]} Kxd8 {[%emt 0:00:11]} 9. Rd1+ {[%emt 0:00:13]} Ke8 {[%emt 0:00:36]} 10. Nc3 {[%emt 0:11:38]} Ne7 {[%emt 0:01:31]} 11. h3 {[%emt 0:10:09]} Ng6 {[%emt 0:02:13]} 12. Ne2 {[%emt 0:10:05]} Be7 {[%emt 0:03:42]} 13. b3 {[%emt 0:02:28]} Be6 {[%emt 0:19:18]} 14. c4 {[%emt 0:11:08]} Rd8 {[%emt 0:08:39]} 15. Bb2 {[%emt 0:03:39]} a6 {[%emt 0:10:49]} 16. Nfd4 {[%emt 0:05:46]} c5 {[%emt 0:09:35]} 17. Nxe6 {[%emt 0:12:13]} fxe6 {[%emt 0:02:21]} 18. f4 {[%emt 0:00:21]} Kf7 {[%emt 0:02:04]} 19. g4 {[%emt 0:01:09]} ({Better is} 19. Kf2 $14) 19... Rxd1+ {[%emt 0:07:23]} ({Black should play} 19... Nh4 $11) 20. Rxd1 $14 {[%emt 0:00:02]} Rd8 {[%emt 0:00:50]} 21. Rxd8 {[%emt 0:04:28]} Bxd8 {[%emt 0:00:09][%mdl 4096] Endgame KBN-KBN} 22. Kf2 {[%emt 0:08:59]} Ne7 {[%emt 0:02:02]} 23. Kf3 {[%emt 0:01:03]} g5 {[%emt 0:14:48]} 24. fxg5 {[%emt 0:01:22]} Ng6 {[%emt 0:00:24]} 25. Bc1 {[%emt 0:00:41]} Nxe5+ {[%emt 0:01:00]} 26. Ke4 {[%emt 0:02:19]} Nc6 {[%emt 0:01:54]} 27. h4 {[%emt 0:02:19][%cal Bh3h4,Bh4h5,Bh5h6][%mdl 32]} b6 {[%emt 0:01:02] [#]} (27... Be7 $16 28. Ng1 Nb4) 28. Ng1 $1 $18 {[%emt 0:02:19]} Be7 {[%emt 0:03:35]} 29. Nf3 {[%emt 0:00:29]} Bd6 {[%emt 0:00:24]} 30. h5 {[%emt 0:02:59]} Nb4 {[%emt 0:02:18]} (30... Kg7 {might work better.} 31. Bb2+ Kg8) 31. Bb2 {[%emt 0:01:58][%cal Og5g6] g6+! would now be deadly.} Nxa2 $2 {[%emt 0:02:58] [#]} (31... Kg8 32. a4 Nc6) 32. g6+ $1 {[%emt 0:00:13][%mdl 512]} hxg6 {[%emt 0:00:13]} 33. Ng5+ {[%emt 0:00:30]} Kg8 {[%emt 0:00:16] [#]} 34. h6 $1 {[%emt 0:00:12]} e5 {[%emt 0:00:21]} 35. Bxe5 {[%emt 0:00:05]} Bxe5 {[%emt 0:00:07]} 36. Kxe5 {[%emt 0:00:03] KN-KN. Black is a pawn up.} Nb4 {[%emt 0:00:56]} 37. Kf6 {[%emt 0:00:14]} Nd3 {[%emt 0:00:46]} 38. Kxg6 {[%emt 0:00:17]} Ne5+ {[%emt 0:00:27]} 39. Kf5 {[%emt 0:00:57]} Nd7 {[%emt 0:01:16]} 40. Ne4 {[%emt 0:00:23]} Nf8 {[%emt 0:01:53]} 41. g5 {[%emt 0:30:09][%cal Bg4g5,Bg5g6][%mdl 32]} Kf7 {[%emt 0:30:27] [#]} 42. g6+ $1 {[%emt 0:00:07][%mdl 512]} Kg8 {[%emt 0:00:20]} (42... Nxg6 43. Ng5+) 43. Nf6+ {[%emt 0:00:05]} 1-0